bitfinex/quotes_SOLUSD_20260113
["timestamp","ask_amount","ask_price","bid_price","bid_amount"]
[1768339655793,2.88201351,143.86,143.83,0.69154572]
[1768339657585,9.83360544,143.86,143.83,0.69154572]
[1768339658391,6.95094274,143.87,143.84,0.69154572]
[1768339658898,0.37833148,143.87,143.84,0.69154572]
[1768339659274,9.8345672,143.88,143.84,0.69154572]
[1768339661002,6.950458,143.88,143.84,0.69154572]
[1768339661172,2.88128249,143.88,143.84,0.69154572]
[1768339661371,2.6042361,143.87,143.83,0.69154572]
[1768339661576,0.38112993,143.87,143.83,0.69154572]
[1768339662598,9.83454539,143.88,143.83,0.69154572]
[1768339662770,7.61143922,143.88,143.83,0.69154572]
[1768339662976,9.83454539,143.88,143.83,0.69154572]
[1768339663178,0.66100303,143.91,143.86,0.69154572]
[1768339663481,2.60143765,143.9,143.86,0.69154572]
[1768339663670,0.37833148,143.9,143.86,0.69154572]
[1768339663874,2.60143765,143.9,143.86,0.69154572]
[1768339664501,9.55089621,143.9,143.86,0.69154572]
[1768339667202,6.94894808,143.91,143.87,0.69154572]
[1768339667393,9.17205425,143.91,143.87,0.69154572]
[1768339667582,6.94850326,143.92,143.87,0.69154572]
[1768339667784,9.17160943,143.92,143.87,0.69154572]
[1768339668679,2.22310617,143.91,143.87,0.69154572]
[1768339669000,9.54994091,143.92,143.87,0.69154572]
[1768339669377,2.22310617,143.91,143.87,0.69154572]
[1768339669777,7.32683474,143.92,143.87,0.69154572]
[1768339670001,2.22310617,143.91,143.87,0.69154572]
[1768339670174,9.54994091,143.92,143.87,0.69154572]
[1768339671498,0.65817632,143.91,143.87,0.69154572]
[1768339671923,7.60950629,143.92,143.87,0.69154572]
[1768339672204,9.83261246,143.92,143.87,0.69154572]
[1768339677307,11.08265276,143.92,143.87,0.69154572]
[1768339678112,0.37833148,143.91,143.87,0.69154572]
[1768339678310,7.32713958,143.91,143.87,0.69154572]
[1768339679011,7.32713958,143.91,143.82,0.69154572]
[1768339679012,0.38112993,143.87,143.82,0.69154572]
[1768339679428,0.38112993,143.87,143.83,0.69154572]
[1768339679600,3.47314647,143.88,143.83,0.69154572]
[1768339680304,10.80172212,143.88,143.83,0.69154572]
[1768339680614,0.65817632,143.87,143.83,0.69154572]
[1768339687218,0.38112993,143.86,143.83,0.69154572]
[1768339688015,3.47314647,143.87,143.83,0.69154572]
[1768339688612,4.12385649,143.87,143.83,0.69154572]
[1768339689618,3.47314647,143.87,143.83,0.69154572]
[1768339689803,3.47314647,143.86,143.83,0.69154572]
[1768339690408,3.85901967,143.87,143.83,0.69154572]
[1768339692426,3.47314647,143.86,143.83,0.69154572]
[1768339699833,4.12385649,143.86,143.83,0.69154572]
[1768339700720,3.47314647,143.86,143.83,0.69154572]
[1768339705248,4.17306794,143.86,143.83,0.69154572]
[1768339705855,4.17306794,143.86,143.82,0.71102706]
[1768339705856,0.33980223,143.85,143.82,0.71102706]
[1768339706039,11.12818549,143.86,143.82,0.71102706]
[1768339707449,7.65503902,143.86,143.82,0.71102706]
[1768339707741,11.12818549,143.86,143.82,0.71102706]
[1768339709136,10.42386586,143.87,143.82,0.71102706]
[1768339709543,10.76003052,143.87,143.82,0.71102706]
[1768339709840,0.69992147,143.86,143.82,0.71102706]
[1768339710447,11.12746164,143.87,143.82,0.71102706]
[1768339712023,10.42386586,143.87,143.82,0.71102706]
[1768339712554,3.8129487,143.85,143.82,0.71102706]
[1768339712729,3.47314647,143.84,143.81,0.91102706]
[1768339714457,3.47314647,143.83,143.81,0.91102706]
[1768339714629,3.47314647,143.83,143.81,0.2]
[1768339715243,3.81651388,143.83,143.81,0.2]
[1768339715849,0.69279075,143.82,143.81,0.2]
[1768339716578,3.47314647,143.83,143.81,0.2]
[1768339720091,4.19313421,143.84,143.81,0.2]
[1768339723573,11.14558234,143.84,143.81,0.2]
[1768339723982,4.19313421,143.84,143.81,0.2]
[1768339725853,11.14542087,143.84,143.81,0.2]
[1768339726079,3.79308309,143.83,143.81,0.2]
[1768339726278,0.71598723,143.82,143.81,0.2]
[1768339726473,4.1891337,143.82,143.81,0.2]
[1768339727159,4.19313421,143.83,143.81,0.2]
[1768339727358,0.71998774,143.83,143.81,0.2]
[1768339727579,4.19313421,143.83,143.81,0.2]
[1768339729884,3.47314647,143.83,143.81,0.2]
[1768339730075,3.47314647,143.83,143.81,0.8541813]
[1768339732193,10.42584151,143.83,143.81,0.8541813]
[1768339733479,3.47314647,143.82,143.81,0.8541813]
[1768339734683,3.47314647,143.82,143.81,0.2]
[1768339735394,3.47314647,143.82,143.81,0.8541813]
[1768339739187,3.47314647,143.82,143.81,0.2]
[1768339739487,2.54555348,143.83,143.81,0.2]
[1768339740105,2.22561686,143.82,143.8,0.8541813]
[1768339741984,2.22561686,143.82,143.81,0.6541813]
[1768339742174,2.22561686,143.82,143.8,0.2]
[1768339742901,2.9456046,143.82,143.8,0.2]
[1768339743798,0.71998774,143.82,143.8,0.2]
[1768339743998,2.22561686,143.81,143.76,0.2]
[1768339744197,2.22561686,143.79,143.76,0.2]
[1768339744581,2.9456046,143.79,143.76,0.2]
[1768339744782,2.22561686,143.79,143.76,0.8541813]
[1768339746701,2.59919297,143.79,143.76,0.8541813]
[1768339747284,2.22561686,143.79,143.76,0.8541813]
[1768339747490,2.66103132,143.79,143.76,0.8541813]
[1768339748597,2.88092052,143.78,143.76,0.2]
[1768339748902,0.43761335,143.77,143.76,0.2]
[1768339749677,2.88314162,143.78,143.76,0.2]
[1768339751603,2.22561686,143.78,143.76,0.90911078]
[1768339752105,2.66103132,143.78,143.76,0.2]
[1768339752605,2.66103132,143.78,143.76,0.90911078]
[1768339752606,2.22561686,143.78,143.76,0.90911078]
[1768339752988,7.6118479,143.8,143.76,0.90911078]
[1768339753188,2.22561686,143.78,143.76,0.90911078]
[1768339754007,0.65752476,143.81,143.77,0.70911078]
[1768339754308,2.22561686,143.79,143.77,0.70911078]
[1768339754512,2.22561686,143.79,143.76,0.2]
[1768339754513,2.22561686,143.78,143.76,0.90911078]
[1768339754808,2.66323021,143.78,143.76,0.2]
[1768339755008,2.22561686,143.78,143.76,0.2]
[1768339755207,2.22561686,143.78,143.76,0.90911078]
[1768339756802,2.22561686,143.78,143.76,0.2]
[1768339757026,2.66103132,143.78,143.76,0.2]
[1768339757891,9.61611448,143.78,143.76,0.2]
[1768339759707,9.18070002,143.78,143.76,0.2]
[1768339762098,9.60441977,143.78,143.76,0.2]
[1768339762901,6.95410292,143.8,143.74,0.7112614]
[1768339763108,2.22561686,143.79,143.74,0.7112614]
[1768339763409,2.32461686,143.79,143.74,0.7112614]
[1768339764014,2.81797083,143.78,143.74,0.7112614]
[1768339764220,9.77341676,143.78,143.74,0.7112614]
[1768339764691,2.3295504,143.77,143.74,0.7112614]
[1768339766308,2.33438576,143.75,143.73,0.2]
[1768339766703,0.1087689,143.75,143.73,0.2]
[1768339768414,6.95652173,143.75,143.73,0.9112614]
[1768339769119,6.95652173,143.75,143.73,0.2]
[1768339770422,2.82295421,143.78,143.74,0.7112614]
[1768339770596,2.22561686,143.77,143.74,0.7112614]
[1768339771494,9.18136625,143.77,143.74,0.7112614]
[1768339772802,2.22561686,143.76,143.73,0.9112614]
[1768339774518,0.59235397,143.76,143.73,0.2]
[1768339774722,2.22561686,143.75,143.73,0.2]
[1768339775225,9.77430618,143.76,143.73,0.2]
[1768339777818,12.68,143.79,143.73,0.2]
[1768339777819,9.28623856,143.75,143.73,0.2]
[1768339778117,2.22561686,143.74,143.73,0.2]
[1768339779115,0.58746977,143.74,143.72,0.2]
[1768339779323,2.81308663,143.74,143.72,0.2]
[1768339780227,2.22561686,143.73,143.72,0.2]
[1768339780595,6.95718748,143.74,143.72,0.2]
[1768339780800,6.95718748,143.74,143.72,0.88920376]
[1768339781019,9.18280434,143.74,143.72,0.88920376]
[1768339781623,9.28180434,143.74,143.72,0.2]
[1768339783627,7.05618748,143.74,143.72,0.2]
[1768339783805,9.28180434,143.74,143.72,0.2]
[1768339785623,2.22561686,143.73,143.72,0.2]
[1768339790009,2.22561686,143.73,143.71,0.88920376]
[1768339790706,7.05618748,143.74,143.71,0.88920376]
[1768339790919,2.22561686,143.73,143.71,0.88920376]
[1768339792733,2.22561686,143.74,143.72,0.68920376]
[1768339794707,2.82295421,143.77,143.74,0.68920376]
[1768339795014,0.67921913,143.76,143.73,0.68920376]
[1768339795833,7.63528581,143.76,143.73,0.68920376]
[1768339799922,9.86090267,143.76,143.73,0.68920376]
[1768339800440,0.67921913,143.74,143.71,0.88920376]
[1768339800633,0.67921913,143.73,143.71,0.2]
[1768339801631,0.67921913,143.75,143.71,0.88920376]
[1768339801807,3.48188854,143.74,143.71,0.88920376]
[1768339802214,0.67921913,143.77,143.72,0.68920376]
[1768339802531,4.16110767,143.76,143.72,0.68920376]
[1768339803623,0.67921913,143.75,143.71,0.2]
[1768339803815,0.67921913,143.73,143.71,0.2]
[1768339804318,11.1181251,143.74,143.71,0.2]
[1768339804533,11.1181251,143.74,143.71,0.88920376]
[1768339805538,7.62352932,143.73,143.71,0.2]
[1768339805918,11.10541786,143.73,143.71,0.2]
[1768339806116,11.10541786,143.73,143.69,0.2]
[1768339806117,3.48188854,143.72,143.69,0.2]
[1768339806330,3.48188854,143.7,143.69,0.2]
[1768339807022,24.35125547,143.73,143.7,0.67701628]
[1768339807023,6.95753113,143.73,143.7,0.67701628]
[1768339807222,7.31030689,143.73,143.7,0.67701628]
[1768339807422,10.79219543,143.73,143.7,0.67701628]
[1768339808631,3.48188854,143.72,143.7,0.67701628]
[1768339810226,4.14475451,143.72,143.69,0.87701628]
[1768339810430,4.14788673,143.74,143.7,0.67701628]
[1768339811315,6.95668845,143.75,143.7,0.67701628]
[1768339811316,11.10457518,143.75,143.7,0.67701628]
[1768339811957,0.66599819,143.78,143.74,0.67701628]
[1768339812127,0.35277576,143.77,143.74,0.67701628]
[1768339812326,3.8346643,143.77,143.72,0.67701628]
[1768339812635,0.66286597,143.76,143.72,0.67701628]
[1768339813235,0.66286597,143.76,143.7,0.67701628]
[1768339813236,3.8377652,143.75,143.7,0.67701628]
[1768339813440,3.48188854,143.74,143.7,0.67701628]
[1768339813956,3.8377652,143.75,143.7,0.67701628]
[1768339814127,3.48188854,143.75,143.7,0.67701628]
[1768339814852,10.43861037,143.75,143.7,0.67701628]
[1768339816422,3.48188854,143.74,143.7,0.67701628]
[1768339819046,3.8377652,143.73,143.7,0.67701628]
[1768339819341,3.48188854,143.71,143.68,0.88172519]
[1768339819541,3.48188854,143.69,143.67,0.2]
[1768339820335,4.19721318,143.69,143.67,0.2]
[1768339821424,3.48188854,143.69,143.67,0.2]
[1768339821823,4.19721318,143.69,143.67,0.2]
[1768339822144,0.71532464,143.68,143.67,0.2]
[1768339822535,0.6853246,143.68,143.67,0.2]
[1768339822928,12.68,143.72,143.67,0.88172519]
[1768339823149,3.48188854,143.72,143.68,0.68172519]
[1768339823347,3.48188854,143.73,143.68,0.68172519]
[1768339823650,3.48188854,143.73,143.69,0.68172519]
[1768339824562,4.19721318,143.73,143.69,0.68172519]
[1768339825047,0.71532464,143.73,143.69,0.68172519]
[1768339825255,4.19721318,143.73,143.69,0.68172519]
[1768339826253,11.15470631,143.73,143.69,0.68172519]
[1768339827853,34.77777004,143.77,143.73,0.68172519]
[1768339827854,6.95584361,143.77,143.73,0.68172519]
[1768339828645,11.15244308,143.78,143.73,0.68172519]
[1768339828836,4.19721318,143.78,143.73,0.68172519]
[1768339829032,11.15149296,143.8,143.75,0.68172519]
[1768339829756,7.66960442,143.8,143.76,0.68172519]
[1768339829931,0.71532464,143.83,143.76,3.48188854]
[1768339830135,0.71532464,143.83,143.74,12.68]
[1768339830136,3.48188854,143.81,143.77,0.68172519]
[1768339830452,4.19721318,143.81,143.77,0.68172519]
[1768339831559,0.71532464,143.8,143.77,0.68172519]
[1768339832257,11.15085193,143.81,143.77,0.68172519]
[1768339833257,0.71532464,143.8,143.75,0.68172519]
[1768339833561,4.19721318,143.79,143.75,0.68172519]
[1768339834366,7.66894399,143.81,143.75,0.68172519]
[1768339834536,3.48188854,143.8,143.75,0.68172519]
[1768339835959,7.66894399,143.81,143.77,0.6800636]
[1768339835960,4.19721318,143.81,143.77,0.6800636]
[1768339836267,11.15090848,143.81,143.77,0.6800636]
[1768339836767,0.6540944,143.8,143.77,0.6800636]
[1768339837337,11.08967824,143.81,143.77,0.6800636]
[1768339837760,0.6540944,143.8,143.76,0.6800636]
[1768339840258,0.6540944,143.79,143.76,0.6800636]
[1768339842965,0.6540944,143.79,143.76,4.16195214]
[1768339843463,0.6540944,143.79,143.76,0.6800636]
[1768339844853,0.6540944,143.82,143.76,0.6800636]
[1768339845049,0.6540944,143.8,143.76,0.6800636]
[1768339845255,0.6540944,143.8,143.76,4.16195214]
[1768339845458,0.6540944,143.79,143.76,0.6800636]
[1768339845656,3.48188854,143.78,143.76,0.6800636]
[1768339845857,3.48188854,143.77,143.74,75.48]
[1768339846173,3.48188854,143.78,143.74,12.68]
[1768339846475,0.6540944,143.79,143.74,12.68]
[1768339846681,24.33428352,143.83,143.74,12.68]
[1768339846682,0.6540944,143.8,143.74,12.68]
[1768339846849,7.60740725,143.82,143.75,3.48188854]
[1768339847173,3.48188854,143.81,143.75,3.48188854]
[1768339847468,13.3340944,143.84,143.74,75.48]
[1768339847650,4.13598294,143.83,143.77,3.48188854]
[1768339847851,4.13598294,143.83,143.78,0.64587391]
[1768339848058,0.6540944,143.82,143.78,0.64587391]
[1768339848260,4.13598294,143.82,143.78,0.64587391]
[1768339848460,3.48188854,143.82,143.78,0.64587391]
[1768339850671,4.13598294,143.82,143.78,0.64587391]
[1768339851175,0.6540944,143.82,143.78,0.64587391]
[1768339851657,4.13598294,143.83,143.78,0.64587391]
[1768339851970,7.60641376,143.84,143.79,0.64587391]
[1768339852173,4.13598294,143.84,143.79,0.64587391]
[1768339852362,11.08828104,143.84,143.79,0.64587391]
[1768339852563,0.6540944,143.83,143.79,0.64587391]
[1768339852961,0.6540944,143.83,143.78,3.48188854]
[1768339853273,0.6540944,143.84,143.79,0.64587391]
[1768339853576,0.6540944,143.83,143.79,0.64587391]
[1768339854270,4.13598294,143.83,143.79,0.64587391]
[1768339854771,0.6540944,143.82,143.79,0.64587391]
[1768339854975,3.48188854,143.83,143.79,0.64587391]
[1768339855172,0.6540944,143.84,143.79,0.64587391]
[1768339855478,3.48188854,143.83,143.79,0.64587391]
[1768339859074,4.13598294,143.82,143.78,0.64587391]
[1768339860477,3.48188854,143.81,143.78,0.64587391]
[1768339860864,0.6540944,143.81,143.77,63.44587391]
[1768339861058,4.13598294,143.81,143.77,63.44587391]
[1768339861486,4.13598294,143.81,143.78,0.64587391]
[1768339862107,0.6540944,143.81,143.78,0.64587391]
[1768339862391,4.13598294,143.81,143.78,0.64587391]
[1768339863398,2.88004122,143.81,143.78,0.64587391]
[1768339863579,0.6540944,143.81,143.78,0.64587391]
[1768339863765,2.88004122,143.81,143.78,0.64587391]
[1768339864273,2.88004122,143.81,143.76,2.22594682]
[1768339864475,2.88004122,143.81,143.77,0.64587391]
[1768339867297,0.68531393,143.79,143.76,0.64587391]
[1768339867890,2.91126075,143.8,143.76,0.64587391]
[1768339871890,0.68531393,143.8,143.76,0.64587391]
[1768339882002,2.91126075,143.8,143.76,0.64587391]
[1768339882182,0.66845887,143.79,143.76,0.64587391]
[1768339883173,2.89440569,143.8,143.76,0.64587391]
[1768339883378,0.66845887,143.79,143.76,0.64587391]
[1768339884288,0.66845887,143.8,143.76,0.64587391]
[1768339888688,6.9526953,143.83,143.76,2.22594682]
[1768339888888,0.66845887,143.82,143.78,0.64587391]
[1768339895283,2.89440569,143.82,143.78,0.64587391]
[1768339895680,2.91184882,143.81,143.78,0.64587391]
[1768339898112,2.91184882,143.8,143.77,13.32587391]
[1768339898406,2.22594682,143.79,143.77,12.68]
[1768339898584,2.91184882,143.8,143.77,12.68]
[1768339899812,0.685902,143.79,143.77,12.68]
[1768339900112,2.91184882,143.79,143.77,12.68]
[1768339902993,0.685902,143.78,143.77,12.68]
[1768339903193,0.685902,143.78,143.75,0.64587391]
[1768339903589,2.91184882,143.78,143.75,0.64587391]
[1768339903804,0.685902,143.77,143.74,75.48]
[1768339904003,2.22594682,143.78,143.75,0.70597022]
[1768339905216,2.22594682,143.78,143.74,75.48]
[1768339905217,2.22594682,143.78,143.74,76.18597022]
[1768339905617,2.22594682,143.78,143.75,0.70597022]
[1768339906211,2.91184882,143.77,143.74,12.68]
[1768339906417,2.22594682,143.76,143.74,13.38597022]
[1768339910117,2.91184882,143.76,143.74,12.68]
[1768339911723,0.685902,143.75,143.74,12.68]
[1768339912516,2.91184882,143.76,143.74,12.68]
[1768339914809,2.22594682,143.75,143.74,12.68]
[1768339915827,2.22594682,143.75,143.73,0.70597022]
[1768339916732,2.91184882,143.75,143.72,0.70597022]
[1768339917601,2.22594682,143.75,143.72,0.70597022]
[1768339918204,2.91184882,143.76,143.72,0.70597022]
[1768339918406,0.685902,143.75,143.72,0.70597022]
[1768339919301,2.91184882,143.75,143.72,0.70597022]
[1768339919932,2.91184882,143.74,143.71,0.70597022]
[1768339920110,2.91184882,143.74,143.7,13.38597022]
[1768339920111,2.22594682,143.74,143.7,13.38597022]
[1768339920610,2.22594682,143.74,143.71,0.70597022]
[1768339923028,2.91184882,143.75,143.71,0.70597022]
[1768339924232,2.22594682,143.76,143.71,0.70597022]
[1768339924532,2.85484477,143.76,143.71,0.70597022]
[1768339925431,4.10952597,143.76,143.71,0.70597022]
[1768339926640,3.48062802,143.75,143.71,0.70597022]
[1768339927830,6.95585443,143.77,143.7,12.68]
[1768339927831,0.68533196,143.74,143.7,12.68]
[1768339928136,0.70838732,143.75,143.71,0.6906123]
[1768339928317,4.1590153,143.75,143.71,0.6906123]
[1768339928521,3.48062802,143.74,143.71,0.6906123]
[1768339928724,3.48062802,143.74,143.72,0.6906123]
[1768339929837,0.67838728,143.75,143.72,0.6906123]
[1768339930023,3.48062802,143.74,143.72,0.6906123]
[1768339931420,4.1590153,143.75,143.72,0.6906123]
[1768339931741,3.48062802,143.74,143.71,0.6906123]
[1768339932736,0.67838728,143.75,143.71,0.6906123]
[1768339932939,3.48062802,143.74,143.71,0.6906123]
[1768339933239,4.0872655,143.74,143.71,0.6906123]
[1768339934142,3.48062802,143.74,143.71,0.6906123]
[1768339934445,4.05756546,143.74,143.71,0.6906123]
[1768339934737,3.48062802,143.74,143.71,0.6906123]
[1768339935736,0.70707283,143.73,143.7,13.3706123]
[1768339936037,4.18901534,143.74,143.71,0.6906123]
[1768339938240,4.18901534,143.74,143.7,12.68]
[1768339938241,3.48062802,143.72,143.7,13.33264584]
[1768339939436,3.48062802,143.72,143.68,62.8]
[1768339939735,3.48062802,143.7,143.68,0.65264584]
[1768339940324,3.48062802,143.69,143.67,0.85264584]
[1768339940724,0.62308821,143.71,143.67,0.85264584]
[1768339940725,3.48062802,143.7,143.67,0.85264584]
[1768339941019,4.14201158,143.7,143.67,0.85264584]
[1768339941423,0.66138356,143.7,143.67,0.85264584]
[1768339941715,4.14201158,143.7,143.67,0.85264584]
[1768339942540,4.10409919,143.69,143.67,0.2]
[1768339942742,4.14163245,143.68,143.67,0.2]
[1768339944337,0.66177038,143.69,143.66,69.33113133]
[1768339944544,3.48062802,143.68,143.66,69.33113133]
[1768339945122,3.90571623,143.68,143.66,69.33113133]
[1768339947933,3.90571623,143.68,143.64,0.2]
[1768339947934,4.14003158,143.67,143.64,0.2]
[1768339948125,3.48062802,143.66,143.64,0.85264584]
[1768339949844,3.48062802,143.65,143.64,0.2]
[1768339950351,3.48062802,143.66,143.64,0.85264584]
[1768339950650,3.48062802,143.67,143.65,0.65264584]
[1768339951228,0.55940356,143.68,143.65,0.65264584]
[1768339951229,3.48062802,143.66,143.65,0.65264584]
[1768339952531,3.48062802,143.66,143.64,0.85264584]
[1768339952851,3.48062802,143.67,143.64,0.85264584]
[1768339953441,3.48062802,143.68,143.65,0.65264584]
[1768339953941,3.57962802,143.68,143.65,0.65264584]
[1768339954346,4.03542754,143.67,143.64,0.85264584]
[1768339954549,0.55940356,143.71,143.67,0.65264584]
[1768339954940,10.99822874,143.72,143.67,0.65264584]
[1768339956057,3.48062802,143.71,143.67,0.65264584]
[1768339956561,3.48062802,143.7,143.67,0.65264584]
[1768339956931,4.03542754,143.7,143.67,0.65264584]
[1768339958761,3.48062802,143.69,143.66,0.6931315]
[1768339958938,3.58418601,143.69,143.65,13.3731315]
[1768339959367,3.58418601,143.69,143.65,0.6931315]
[1768339959680,3.48062802,143.67,143.65,0.6931315]
[1768339960052,3.48062802,143.67,143.64,13.5731315]
[1768339960356,3.5886533,143.67,143.64,12.88]
[1768339960859,3.5886533,143.67,143.64,13.5731315]
[1768339961754,3.5886533,143.67,143.64,0.8931315]
[1768339961953,3.59303169,143.65,143.61,0.8931315]
[1768339962269,3.48062802,143.63,143.61,0.8931315]
[1768339962446,3.48062802,143.64,143.61,0.8931315]
[1768339963368,3.59303169,143.65,143.61,0.8931315]
[1768339964060,3.48062802,143.64,143.61,0.8931315]
[1768339964954,4.02215791,143.64,143.61,0.2]
[1768339967066,3.48062802,143.64,143.61,0.8931315]
[1768339967739,11.00145503,143.65,143.61,0.8931315]
[1768339968463,0.099,143.64,143.61,0.2]
[1768339972470,11.00145503,143.65,143.61,0.2]
[1768339972655,0.099,143.64,143.61,0.8931315]
[1768339973044,0.099,143.64,143.61,0.2]
[1768339973457,3.48062802,143.64,143.61,0.8931315]
[1768339973771,10.54153216,143.64,143.61,0.8931315]
[1768339975769,10.54153216,143.64,143.61,0.2]
[1768339976473,0.55479952,143.63,143.61,0.2]
[1768339977672,7.5213077,143.64,143.61,0.2]
[1768339977875,0.099,143.63,143.6,0.1]
[1768339978669,0.099,143.63,143.6,0.7931315]
[1768339980074,0.099,143.63,143.6,0.1]
[1768339980256,3.84003158,143.62,143.59,0.1]
[1768339980457,0.35940356,143.62,143.59,0.1]
[1768339980761,10.44311163,143.63,143.59,0.7931315]
[1768339980762,7.32188717,143.63,143.59,0.7931315]
[1768339981067,0.35940356,143.63,143.59,0.7931315]
[1768339981268,3.84003158,143.63,143.59,0.7931315]
[1768339981876,7.3217884,143.63,143.59,0.7931315]
[1768339982193,6.96238484,143.63,143.59,0.7931315]
[1768339982372,7.06138484,143.63,143.59,0.7931315]
[1768339982571,10.80241642,143.63,143.59,0.7931315]
[1768339982866,7.3217884,143.63,143.59,0.7931315]
[1768339983070,10.80241642,143.63,143.59,0.7931315]
[1768339984253,3.84003158,143.63,143.59,0.7931315]
[1768339984876,0.099,143.62,143.59,0.1]
[1768339987220,0.35940356,143.65,143.6,0.68934372]
[1768339987482,2.23160788,143.63,143.61,0.68934372]
[1768339987685,2.23160788,143.63,143.6,0.68934372]
[1768339987862,2.23160788,143.62,143.6,0.68934372]
[1768339988178,2.33318587,143.62,143.59,0.1]
[1768339988481,2.23160788,143.61,143.59,0.1]
[1768339989382,2.23160788,143.6,143.57,0.68934372]
[1768339990858,2.33571256,143.6,143.57,0.68934372]
[1768339991079,2.33571256,143.6,143.56,0.78934372]
[1768339991865,2.23160788,143.6,143.56,0.78934372]
[1768339993483,9.19544336,143.6,143.56,0.78934372]
[1768339994194,2.23160788,143.6,143.56,0.78934372]
[1768339995295,7.32292048,143.61,143.56,0.78934372]
[1768339995474,9.55452836,143.61,143.56,0.78934372]
[1768339996695,0.099,143.6,143.56,0.78934372]
[1768339997223,0.35679952,143.59,143.56,0.78934372]
[1768339998180,6.96296362,143.62,143.59,0.67919301]
[1768339998381,9.29295488,143.63,143.59,0.67919301]
[1768339999278,2.23160788,143.62,143.59,0.67919301]
[1768340000500,2.23160788,143.6,143.57,0.67919301]
[1768340001087,2.33318587,143.61,143.57,0.67919301]
[1768340001700,2.23160788,143.61,143.57,0.67919301]
[1768340002103,2.33060788,143.61,143.57,0.67919301]
[1768340002288,2.33060788,143.62,143.57,0.67919301]
[1768340003506,9.29343125,143.62,143.57,0.67919301]
[1768340003690,2.33060788,143.62,143.57,0.67919301]
[1768340004006,2.23160788,143.62,143.57,0.67919301]
[1768340005093,9.5534153,143.63,143.58,0.67919301]
[1768340006507,2.23160788,143.62,143.58,0.67919301]
[1768340008701,2.5884074,143.61,143.58,0.67919301]
[1768340009285,2.5884074,143.61,143.56,65.81080089]
[1768340009507,0.10157799,143.6,143.56,63.57919301]
[1768340009808,0.10157799,143.6,143.56,0.77919301]
[1768340010311,2.33318587,143.6,143.56,0.77919301]
[1768340010498,7.06191341,143.62,143.56,0.77919301]
[1768340010807,9.29352129,143.62,143.58,0.67919301]
[1768340010991,0.35679952,143.61,143.58,0.67919301]
[1768340011187,0.35679952,143.61,143.56,0.1]
[1768340011389,0.35679952,143.61,143.56,0.77919301]
[1768340011783,0.35679952,143.61,143.57,0.67919301]
[1768340012712,0.35679952,143.61,143.56,3.01080089]
[1768340014285,0.35679952,143.61,143.57,0.67919301]
[1768340014687,0.35940356,143.64,143.58,0.67919301]
[1768340014998,2.33060788,143.63,143.58,0.67726985]
[1768340015716,0.35679952,143.62,143.57,2.90887773]
[1768340016520,0.35679952,143.62,143.57,0.67726985]
[1768340016690,0.35679952,143.62,143.57,2.90887773]
[1768340017812,0.35679952,143.62,143.57,65.70887773]
[1768340018017,2.23160788,143.63,143.58,0.67726985]
[1768340018192,2.59101144,143.63,143.58,0.67726985]
[1768340019915,2.23160788,143.62,143.58,0.67726985]
[1768340022711,2.33060788,143.62,143.58,0.67726985]
[1768340023811,2.5884074,143.61,143.58,0.67726985]
[1768340024108,2.33318587,143.6,143.56,0.77726985]
[1768340024514,2.23160788,143.6,143.56,0.77726985]
[1768340026194,2.33060788,143.6,143.56,0.77726985]
[1768340026402,2.23160788,143.57,143.54,2.51252046]
[1768340026710,0.35174589,143.55,143.54,2.51252046]
[1768340026913,2.23160788,143.56,143.54,2.51252046]
[1768340028818,0.25940357,143.58,143.54,3.18979031]
[1768340029115,2.23160788,143.56,143.54,3.18979031]
[1768340029288,2.33060788,143.57,143.54,2.51252046]
[1768340029493,2.23160788,143.57,143.54,3.18979031]
[1768340030109,2.14140995,143.57,143.55,0.67726985]
[1768340030309,2.23160788,143.57,143.55,0.67726985]
[1768340031227,2.23160788,143.57,143.54,3.18979031]
[1768340031517,2.23160788,143.55,143.54,3.18979031]
[1768340031820,2.23160788,143.55,143.53,0.1]
[1768340032020,2.23160788,143.54,143.53,0.1]
[1768340032200,2.23160788,143.54,143.52,7.82875783]
[1768340032401,2.61057905,143.55,143.52,7.82875783]
[1768340035411,0.37897117,143.55,143.52,7.82875783]
[1768340035613,2.23160788,143.54,143.52,7.82875783]
[1768340036515,2.61057905,143.55,143.52,7.82875783]
[1768340036813,2.61057905,143.55,143.52,8.50602768]
[1768340037112,2.23160788,143.54,143.52,8.50602768]
[1768340037315,2.23160788,143.54,143.52,7.82875783]
[1768340037513,2.8827331,143.54,143.52,7.82875783]
[1768340037705,0.38169271,143.53,143.52,7.82875783]
[1768340038214,19.6442384,143.58,143.52,7.82875783]
[1768340038215,0.65387425,143.55,143.52,7.82875783]
[1768340038530,0.65387425,143.55,143.52,8.50602768]
[1768340039102,2.88548213,143.55,143.52,8.50602768]
[1768340041525,0.37897117,143.54,143.52,7.82875783]
[1768340042025,2.23160788,143.55,143.52,8.50602768]